fUSD/lending_fUSD_20250828
["ID","MTS","AMOUNT","RATE_DAILY","PERIOD"]
[381822029,1756359070054,-296.45100735,0.00019916,2]
[381822030,1756359070065,-400.0,0.00019916,2]
[381822031,1756359070074,-400.0,0.00019916,2]
[381822032,1756359070083,-400.0,0.00019916,2]
[381822033,1756359070092,-400.0,0.00019916,2]
[381822034,1756359070102,-400.0,0.00019916,2]
[381822035,1756359070111,-400.0,0.00019916,2]
[381822036,1756359070120,-400.0,0.00019916,2]
[381822037,1756359070129,-400.0,0.00019916,2]
[381822038,1756359070139,-425.03,0.00019916,2]
[381822039,1756359070149,-607.2,0.00019916,2]
[381822040,1756359070159,-408.84,0.00019916,2]
[381822041,1756359070168,-442.57,0.00019916,2]
[381822042,1756359070179,-1048.72,0.00019916,2]
[381822043,1756359070188,-400.0,0.00019916,2]
[381822044,1756359070198,-326.64023844,0.00019916,2]
[381822045,1756359070207,-425.7,0.00019916,2]
[381822046,1756359070278,-856.33,0.00019916,2]
[381822047,1756359070288,-440.3,0.00019916,2]
[381822048,1756359070297,-615.0,0.00019916,2]
[381822049,1756359070306,-400.0,0.00019916,2]
[381822050,1756359070316,-400.0,0.00019916,2]
[381822051,1756359070325,-400.0,0.00019916,2]
[381822052,1756359070334,-400.0,0.00019916,2]
[381822053,1756359070343,-400.0,0.00019916,2]
[381822054,1756359070352,-220.69069173,0.00019916,2]
[381822055,1756359070362,-400.0,0.00019916,2]
[381822056,1756359070371,-400.0,0.00019916,2]
[381822057,1756359070381,-400.0,0.00019916,2]
[381822058,1756359070390,-409.55,0.00019916,2]
[381822059,1756359070400,-554.38,0.00019916,2]
[381822060,1756359070410,-466.59,0.00019916,2]
[381822061,1756359070420,-400.0,0.00019916,2]
[381822062,1756359070429,-440.02,0.00019916,2]
[381822063,1756359070439,-400.0,0.00019916,2]
[381822064,1756359070448,-400.0,0.00019916,2]
[381822065,1756359070457,-544.52,0.00019916,2]
[381822066,1756359070467,-584.93,0.00019916,2]
[381822067,1756359070476,-1318.25,0.00019916,2]
[381822068,1756359070486,-400.0,0.00019916,2]
[381822069,1756359070495,-512.81,0.00019916,2]
[381822070,1756359070505,-691.02,0.00019916,2]
[381822071,1756359070514,-1324.04702224,0.00019916,2]
[381822072,1756359070524,-2000.0,0.00019916,2]
[381822073,1756359070534,-2000.0,0.00019916,2]
[381822074,1756359070546,-2000.0,0.00019916,2]
[381822075,1756359070558,-207.15978171,0.00019917,2]
[381822076,1756359070567,-400.0,0.00019917,2]
[381822077,1756359070577,-400.0,0.00019917,2]
[381822078,1756359070587,-400.0,0.00019917,2]
[381822079,1756359070597,-545.81,0.00019917,2]
[381822080,1756359070608,-633.46,0.00019917,2]
[381822081,1756359070617,-400.0,0.00019917,2]
[381822082,1756359070629,-1042.04,0.00019917,2]
[381822083,1756359070638,-4735.76,0.00019917,2]
[381822084,1756359070648,-267.98545491,0.00019917,2]
[381822085,1756359070658,-2496.66,0.00019917,2]
[381822086,1756359070669,-400.0,0.00019917,2]
[381822087,1756359070678,-400.0,0.00019917,2]
[381822088,1756359070687,-194.19232568,0.00019917,2]
[381822089,1756359070696,-400.0,0.00019917,2]
[381822090,1756359070706,-419.34,0.00019917,2]
[381822091,1756359070715,-400.0,0.00019917,2]
[381822092,1756359070725,-400.0,0.00019917,2]
[381822093,1756359070734,-1748.86,0.00019917,2]
[381822094,1756359070744,-199.94528202,0.00019917,2]
[381822095,1756359070754,-400.0,0.00019917,2]
[381822096,1756359070763,-400.0,0.00019917,2]
[381822097,1756359070773,-400.0,0.00019917,2]
[381822098,1756359070782,-400.0,0.00019917,2]
[381822099,1756359070791,-400.0,0.00019917,2]
[381822100,1756359070800,-400.0,0.00019917,2]
[381822101,1756359070810,-400.0,0.00019917,2]
[381822102,1756359070819,-400.0,0.00019917,2]
[381822103,1756359070829,-400.0,0.00019917,2]
[381822104,1756359070839,-1048.27,0.00019917,2]
[381822105,1756359070850,-400.0,0.00019917,2]
[381822106,1756359070860,-400.0,0.00019917,2]
[381822107,1756359070869,-1535.82,0.00019917,2]
[381822108,1756359070879,-400.0,0.00019917,2]
[381822109,1756359070888,-400.0,0.00019917,2]
[381822110,1756359070897,-400.0,0.00019917,2]
[381822111,1756359070907,-400.0,0.00019917,2]
[381822112,1756359070917,-406.65268431,0.00019917,2]
[381822113,1756359070926,-400.0,0.00019917,2]
[381822114,1756359070935,-400.0,0.00019917,2]
[381822115,1756359070945,-16663.40704,0.0001993,2]
[381822116,1756359070954,-5352.4246464,0.0001993,2]
[381822117,1756359070963,-3665.28467256,0.0001998,2]
[381822118,1756359070972,-161.14,0.0002,2]
[381822119,1756359070984,-34652.76703117,0.0002,5]
[381822120,1756359070995,-392.15866913,0.0002,2]
[381822121,1756359071004,-1000.0,0.0002,2]
[381822122,1756359071014,-5860.82697275,0.0002,2]
[381822123,1756359071023,-54190.69034566,0.0002,2]
[381822124,1756359071271,-666.0,0.0002,2]
[381822125,1756359071423,-151.0,0.00018126,2]
[381822126,1756359071433,-122.89689015,0.0002,2]
[381822127,1756359071444,-3765.36458023,0.0002,2]
[381822128,1756359071775,-822.1661,0.0002,2]
[381822129,1756359071806,-4593.42698926,0.0002,2]
[381822130,1756359071817,-6883.38337673,0.0002,2]
[381822131,1756359071829,-4128.63986883,0.0002,2]
[381822132,1756359071841,-2929.43184914,0.0002,2]
[381822133,1756359071851,-1502.83654112,0.0002,3]
[381822134,1756359071862,-534.00850604,0.0002,3]
[381822135,1756359071871,-250.0,0.0002,7]
[381822136,1756359071880,-1000.0,0.0002,2]
[381822137,1756359071889,-1000.00775466,0.0002,2]
[381822138,1756359071898,-6500.55277217,0.0002,3]
[381822139,1756359071907,-16495.41770725,0.0002,7]
[381822140,1756359071921,-67295.41323885,0.0002,7]
[381822141,1756359071933,-1363.68834929,0.0002,7]
[381822142,1756359071944,-9677.49190937,0.0002,7]
[381822143,1756359071955,-2450.08099561,0.0002,7]
[381822144,1756359071990,-290.6502,0.0002,7]
[381822145,1756359072004,-1730.84596,0.0002,7]
[381822146,1756359072015,-47944.41755384,0.0002,7]
[381822147,1756359072780,-199.0,0.00017828,2]
[381822148,1756359072789,-2113.15499099,0.0002,7]
[381822149,1756359072803,-2279.11946,0.0002,7]
[381822150,1756359072953,-500.0,0.00016356,2]
[381822151,1756359072963,-500.0,0.00016356,2]
[381822152,1756359072973,-273.02647633,0.00016356,2]
[381822153,1756359072983,-199.0,0.00017687,2]
[381822154,1756359073000,-400.0,0.00017998,2]
[381822155,1756359073011,-420.45,0.00018272,2]
[381822156,1756359073021,-14099.7196348,0.0002,7]
[381822157,1756359073031,-151.0,0.0002,5]
[381822158,1756359073041,-212.21549908,0.0002,3]
[381822159,1756359073051,-212.21549908,0.0002,7]
[381822160,1756359073061,-409.82097998,0.0002,3]
[381822161,1756359073071,-7606.0,0.0002,2]
[381822162,1756359073081,-200.0,0.0002,2]
[381822163,1756359073091,-4000.0,0.0002,4]
[381822164,1756359073101,-791.0,0.00020032,2]
[381822165,1756359073110,-190.82,0.00020056,2]
[381822166,1756359073120,-183.96433175,0.00020089,2]
[381822167,1756359073130,-400.0,0.00020089,2]
[381822168,1756359073139,-670.01,0.00020089,2]
[381822169,1756359073149,-400.0,0.00020089,2]
[381822170,1756359073159,-150.724341,0.00020089,2]
[381822171,1756359073174,-237.375839,0.00020089,2]
[381822172,1756359073184,-468.69929,0.00020089,2]
[381822173,1756359073193,-551.72,0.00020089,2]
[381822174,1756359073203,-365.77137151,0.0002009,2]
[381822175,1756359073213,-534.42,0.0002009,2]
[381822176,1756359073223,-400.0,0.0002009,2]
[381822177,1756359073233,-447.19,0.0002009,2]
[381822178,1756359073244,-1313.8,0.0002009,2]
[381822179,1756359073254,-400.0,0.0002009,2]
[381822180,1756359073264,-315.88,0.0002009,2]
[381822181,1756359073274,-364.78022551,0.0002009,2]
[381822182,1756359073284,-400.0,0.0002009,2]
[381822183,1756359073294,-400.0,0.00020091,2]
[381822184,1756359073304,-486.90420896,0.00020091,2]
[381822185,1756359073314,-437.31,0.00020091,2]
[381822186,1756359073323,-2500.0,0.00020164,2]
[381822187,1756359073334,-2501.7066266,0.00020164,2]
[381822188,1756359073343,-1143.9700195,0.00020176,2]
[381822189,1756359073352,-220.17,0.00020187,2]
[381822190,1756359073362,-400.0,0.0002019,2]
[381822191,1756359073372,-400.0,0.0002019,2]
[381822192,1756359073381,-400.0,0.0002019,2]
[381822193,1756359073391,-400.0,0.0002019,2]
[381822194,1756359073400,-163.54538817,0.0002019,2]
[381822195,1756359073410,-400.0,0.0002019,2]
[381822196,1756359073422,-400.0,0.0002019,2]
[381822197,1756359073431,-400.0,0.0002019,2]
[381822198,1756359073441,-400.0,0.0002019,2]
[381822199,1756359073451,-400.0,0.0002019,2]
[381822200,1756359073461,-400.0,0.0002019,2]
[381822201,1756359073471,-400.0,0.0002019,2]
[381822202,1756359073481,-400.0,0.0002019,2]
[381822203,1756359073491,-476.33,0.0002019,2]
[381822204,1756359073501,-400.0,0.0002019,2]
[381822205,1756359073511,-400.0,0.0002019,2]
[381822206,1756359073520,-242.95759429,0.0002019,2]
[381822207,1756359073530,-400.0,0.0002019,2]
[381822208,1756359073539,-400.0,0.0002019,2]
[381822209,1756359073549,-400.0,0.0002019,2]
[381822210,1756359073559,-1717.97,0.0002019,2]
[381822211,1756359073568,-400.0,0.0002019,2]
[381822212,1756359073578,-400.0,0.0002019,2]
[381822213,1756359073588,-400.0,0.0002019,2]
[381822214,1756359073597,-400.0,0.0002019,2]
[381822215,1756359073607,-400.0,0.0002019,2]
[381822216,1756359073617,-400.0,0.0002019,2]
[381822217,1756359073627,-400.0,0.0002019,2]
[381822218,1756359073636,-400.0,0.0002019,2]
[381822219,1756359073646,-400.0,0.0002019,2]
[381822220,1756359073655,-400.0,0.0002019,2]
[381822221,1756359073667,-400.0,0.0002019,2]
[381822222,1756359073677,-400.0,0.0002019,2]
[381822223,1756359073686,-400.0,0.0002019,2]
[381822224,1756359073696,-400.0,0.0002019,2]
[381822225,1756359073705,-400.0,0.0002019,2]
[381822226,1756359073715,-400.0,0.0002019,2]
[381822227,1756359073726,-400.0,0.0002019,2]
[381822228,1756359073738,-1453.82,0.0002019,2]
[381822229,1756359073755,-400.0,0.0002019,2]
[381822230,1756359073764,-400.0,0.0002019,2]
[381822231,1756359073774,-400.0,0.0002019,2]
[381822232,1756359073784,-400.0,0.0002019,2]
[381822233,1756359073794,-400.0,0.0002019,2]
[381822234,1756359073804,-400.0,0.0002019,2]
[381822235,1756359073814,-400.0,0.0002019,2]
[381822236,1756359073823,-400.0,0.0002019,2]
[381822237,1756359073833,-400.0,0.0002019,2]
[381822238,1756359073842,-400.0,0.0002019,2]
[381822239,1756359073852,-400.0,0.0002019,2]
[381822240,1756359073862,-401.1,0.0002019,2]
[381822241,1756359073872,-400.0,0.0002019,2]
[381822242,1756359073882,-400.0,0.0002019,2]
[381822243,1756359073891,-400.0,0.0002019,2]
[381822244,1756359073901,-400.0,0.0002019,2]
[381822245,1756359073911,-400.0,0.0002019,2]
[381822246,1756359073923,-400.0,0.0002019,2]
[381822247,1756359073933,-554.12,0.0002019,2]
[381822248,1756359073943,-400.0,0.0002019,2]
[381822249,1756359073953,-400.0,0.0002019,2]
[381822250,1756359073963,-400.0,0.0002019,2]
[381822251,1756359073973,-400.0,0.0002019,2]
[381822252,1756359073983,-400.0,0.0002019,2]
[381822253,1756359073994,-400.0,0.0002019,2]
[381822254,1756359074004,-519.74416869,0.0002019,2]
[381822255,1756359074014,-400.0,0.0002019,2]
[381822256,1756359074024,-425.03,0.0002019,2]
[381822257,1756359074034,-408.84,0.0002019,2]
[381822258,1756359074046,-442.57,0.0002019,2]
[381822259,1756359074055,-1048.72,0.0002019,2]
[381822260,1756359074065,-400.0,0.0002019,2]
[381822261,1756359074075,-425.7,0.0002019,2]
[381822262,1756359074084,-440.3,0.0002019,2]
[381822263,1756359074094,-856.33,0.0002019,2]
[381822264,1756359074103,-400.0,0.0002019,2]
[381822265,1756359074113,-615.0,0.0002019,2]
[381822266,1756359074123,-400.0,0.0002019,2]
[381822267,1756359074133,-400.0,0.0002019,2]
[381822268,1756359074143,-400.0,0.0002019,2]
[381822269,1756359074153,-400.0,0.0002019,2]
[381822270,1756359074164,-400.0,0.0002019,2]
[381822271,1756359074175,-218.50713429,0.0002019,2]
[381822272,1756359074185,-378.26429295,0.0002019,2]
[381822273,1756359074195,-409.55,0.0002019,2]
[381822274,1756359074205,-554.38,0.0002019,2]
[381822275,1756359074215,-466.59,0.0002019,2]
[381822276,1756359074226,-400.0,0.0002019,2]
[381822277,1756359074236,-440.02,0.0002019,2]
[381822278,1756359074246,-400.0,0.0002019,2]
[381822279,1756359074257,-400.0,0.0002019,2]
[381822280,1756359074266,-544.52,0.0002019,2]
[381822281,1756359074276,-584.93,0.0002019,2]
[381822282,1756359074286,-1318.25,0.0002019,2]
[381822283,1756359074296,-400.0,0.0002019,2]
[381822284,1756359074306,-512.81,0.0002019,2]
[381822285,1756359074316,-691.02,0.0002019,2]
[381822286,1756359074327,-400.0,0.00020191,2]
[381822287,1756359074338,-400.0,0.00020191,2]
[381822288,1756359074349,-400.0,0.00020191,2]
[381822289,1756359074359,-545.81,0.00020191,2]
[381822290,1756359074368,-633.46,0.00020191,2]
[381822291,1756359074379,-400.0,0.00020191,2]
[381822292,1756359074389,-1042.04,0.00020191,2]
[381822293,1756359074399,-4735.76,0.00020191,2]
[381822294,1756359074409,-2496.66,0.00020191,2]
[381822295,1756359074420,-219.96,0.00020191,2]
[381822296,1756359074429,-400.0,0.00020191,2]
[381822297,1756359074439,-505.70566219,0.00020191,2]
[381822298,1756359074449,-419.34,0.00020191,2]
[381822299,1756359074458,-400.0,0.00020191,2]
[381822300,1756359074468,-400.0,0.00020191,2]
[381822301,1756359074479,-1748.86,0.00020191,2]
[381822302,1756359074489,-400.0,0.00020191,2]
[381822303,1756359074499,-400.0,0.00020191,2]
[381822304,1756359074508,-400.0,0.00020191,2]
[381822305,1756359074519,-400.0,0.00020191,2]
[381822306,1756359074529,-400.0,0.00020191,2]
[381822307,1756359074539,-400.0,0.00020191,2]
[381822308,1756359074549,-400.0,0.00020191,2]
[381822309,1756359074559,-400.0,0.00020191,2]
[381822310,1756359074570,-400.0,0.00020191,2]
[381822311,1756359074579,-1048.27,0.00020191,2]
[381822312,1756359074590,-400.0,0.00020191,2]
[381822313,1756359074599,-400.0,0.00020191,2]
[381822314,1756359074610,-1535.82,0.00020191,2]
[381822315,1756359074620,-400.0,0.00020191,2]
[381822316,1756359074632,-400.0,0.00020191,2]
[381822317,1756359074642,-360.93849523,0.00020191,2]
[381822318,1756359074652,-457.72206696,0.00020191,2]
[381822319,1756359074663,-400.0,0.00020191,2]
[381822320,1756359074675,-400.0,0.00020191,2]
[381822321,1756359074685,-1850.0,0.000202,5]
[381822322,1756359074695,-350.0,0.00020274,2]
[381822323,1756359074704,-298.15219749,0.00020274,2]
[381822324,1756359074714,-552.0,0.00020301,2]
[381822325,1756359074724,-791.0,0.00020306,2]
[381822326,1756359074735,-400.0,0.00020363,2]
[381822327,1756359074745,-670.01,0.00020363,2]
[381822328,1756359074755,-400.0,0.00020363,2]
[381822329,1756359074765,-150.724341,0.00020363,2]
[381822330,1756359074775,-237.375839,0.00020363,2]
[381822331,1756359074792,-468.69929,0.00020363,2]
[381822332,1756359074802,-551.72,0.00020363,2]
[381822333,1756359074811,-534.42,0.00020364,2]
[381822334,1756359074821,-400.0,0.00020364,2]
[381822335,1756359074832,-447.19,0.00020364,2]
[381822336,1756359074841,-1313.8,0.00020364,2]
[381822337,1756359074852,-400.0,0.00020364,2]
[381822338,1756359074861,-400.0,0.00020364,2]
[381822339,1756359074871,-400.0,0.00020365,2]
[381822340,1756359074882,-437.31,0.00020365,2]
[381822341,1756359074892,-1101.0,0.0002039,2]
[381822342,1756359074902,-721.12765535,0.0002041,2]
[381822343,1756359074912,-3718.1086814,0.00020431,2]
[381822344,1756359074922,-1194.2873685,0.00020431,2]
[381822345,1756359074933,-162.66,0.0002045,2]
[381822346,1756359074943,-400.0,0.00020464,2]
[381822347,1756359074954,-400.0,0.00020464,2]
[381822348,1756359074963,-400.0,0.00020464,2]
[381822349,1756359074973,-400.0,0.00020464,2]
[381822350,1756359074983,-400.0,0.00020464,2]
[381822351,1756359074995,-400.0,0.00020464,2]
[381822352,1756359075005,-400.0,0.00020464,2]
[381822353,1756359075015,-400.0,0.00020464,2]
[381822354,1756359075025,-400.0,0.00020464,2]
[381822355,1756359075035,-400.0,0.00020464,2]
[381822356,1756359075045,-400.0,0.00020464,2]
[381822357,1756359075056,-400.0,0.00020464,2]
[381822358,1756359075067,-476.33,0.00020464,2]
[381822359,1756359075287,-400.0,0.00020464,2]
[381822360,1756359075298,-400.0,0.00020464,2]
[381822361,1756359075308,-400.0,0.00020464,2]
[381822362,1756359075318,-400.0,0.00020464,2]
[381822363,1756359075328,-400.0,0.00020464,2]
[381822364,1756359075338,-1717.97,0.00020464,2]
[381822365,1756359075349,-400.0,0.00020464,2]
[381822366,1756359075359,-243.79995818,0.00020464,2]
[381822367,1756359075368,-400.0,0.00020464,2]
[381822368,1756359075378,-400.0,0.00020464,2]
[381822369,1756359075388,-400.0,0.00020464,2]
[381822370,1756359075398,-278.64317381,0.00020464,2]
[381822371,1756359075409,-400.0,0.00020464,2]
[381822372,1756359075419,-400.0,0.00020464,2]
[381822373,1756359075428,-225.13461039,0.00020464,2]
[381822374,1756359075437,-400.0,0.00020464,2]
[381822375,1756359075447,-400.0,0.00020464,2]
[381822376,1756359075456,-400.0,0.00020464,2]
[381822377,1756359075466,-400.0,0.00020464,2]
[381822378,1756359075476,-273.39548686,0.00020464,2]
[381822379,1756359075486,-400.0,0.00020464,2]
[381822380,1756359075497,-400.0,0.00020464,2]
[381822381,1756359075506,-400.0,0.00020464,2]
[381822382,1756359075516,-1453.82,0.00020464,2]
[381822383,1756359075525,-400.0,0.00020464,2]
[381822384,1756359075535,-400.0,0.00020464,2]
[381822385,1756359075544,-400.0,0.00020464,2]
[381822386,1756359075554,-400.0,0.00020464,2]
[381822387,1756359075563,-400.0,0.00020464,2]
[381822388,1756359075572,-400.0,0.00020464,2]
[381822389,1756359075582,-400.0,0.00020464,2]
[381822390,1756359075592,-400.0,0.00020464,2]
[381822391,1756359075602,-400.0,0.00020464,2]
[381822392,1756359075612,-400.0,0.00020464,2]
[381822393,1756359075621,-400.0,0.00020464,2]
[381822394,1756359075631,-401.1,0.00020464,2]
[381822395,1756359075640,-400.0,0.00020464,2]
[381822396,1756359075650,-400.0,0.00020464,2]
[381822397,1756359075659,-400.0,0.00020464,2]
[381822398,1756359075669,-400.0,0.00020464,2]
[381822399,1756359075678,-475.46778615,0.00020464,2]
[381822400,1756359075687,-400.0,0.00020464,2]
[381822401,1756359075699,-554.12,0.00020464,2]
[381822402,1756359075709,-400.0,0.00020464,2]
[381822403,1756359075718,-400.0,0.00020464,2]
[381822404,1756359075728,-400.0,0.00020464,2]
[381822405,1756359075738,-400.0,0.00020464,2]
[381822406,1756359075747,-400.0,0.00020464,2]
[381822407,1756359075757,-400.0,0.00020464,2]
[381822408,1756359075766,-400.0,0.00020464,2]
[381822409,1756359075776,-425.03,0.00020464,2]
[381822410,1756359075786,-408.84,0.00020464,2]
[381822411,1756359075795,-442.57,0.00020464,2]
[381822412,1756359075804,-1048.72,0.00020464,2]
[381822413,1756359075814,-400.0,0.00020464,2]
[381822414,1756359075824,-425.7,0.00020464,2]
[381822415,1756359075833,-440.3,0.00020464,2]
[381822416,1756359075843,-856.33,0.00020464,2]
[381822417,1756359075852,-615.0,0.00020464,2]
[381822418,1756359075862,-400.0,0.00020464,2]
[381822419,1756359075872,-400.0,0.00020464,2]
[381822420,1756359075882,-512.05607707,0.00020464,2]
[381822421,1756359075892,-400.0,0.00020464,2]
[381822422,1756359075904,-400.0,0.00020464,2]
[381822423,1756359075914,-400.0,0.00020464,2]
[381822424,1756359075925,-409.55,0.00020464,2]
[381822425,1756359075935,-554.38,0.00020464,2]
[381822426,1756359075944,-466.59,0.00020464,2]
[381822427,1756359075954,-400.0,0.00020464,2]
[381822428,1756359075963,-440.02,0.00020464,2]
[381822429,1756359075973,-400.0,0.00020464,2]
[381822430,1756359075984,-400.0,0.00020464,2]
[381822431,1756359075996,-544.52,0.00020464,2]
[381822432,1756359076006,-584.93,0.00020464,2]
[381822433,1756359076016,-1318.25,0.00020464,2]
[381822434,1756359076026,-400.0,0.00020464,2]
[381822435,1756359076036,-512.81,0.00020464,2]
[381822436,1756359076045,-691.02,0.00020464,2]
[381822437,1756359076055,-1951.71595011,0.00020464,2]
[381822438,1756359076065,-2500.0,0.00020464,2]
[381822439,1756359076075,-2500.0,0.00020464,2]
[381822440,1756359076084,-400.0,0.00020465,2]
[381822441,1756359076094,-400.0,0.00020465,2]
[381822442,1756359076103,-400.0,0.00020465,2]
[381822443,1756359076113,-545.81,0.00020465,2]
[381822444,1756359076123,-633.46,0.00020465,2]
[381822445,1756359076132,-400.0,0.00020465,2]
[381822446,1756359076142,-1042.04,0.00020465,2]
[381822447,1756359076151,-4735.76,0.00020465,2]
[381822448,1756359076161,-2496.66,0.00020465,2]
[381822449,1756359076171,-334.24,0.00020465,2]
[381822450,1756359076181,-419.34,0.00020465,2]
[381822451,1756359076191,-400.0,0.00020465,2]
[381822452,1756359076200,-400.0,0.00020465,2]
[381822453,1756359076210,-1748.86,0.00020465,2]
[381822454,1756359076219,-304.9449433,0.00020465,2]
[381822455,1756359076229,-400.0,0.00020465,2]
[381822456,1756359076239,-400.0,0.00020465,2]
[381822457,1756359076249,-400.0,0.00020465,2]
[381822458,1756359076258,-400.0,0.00020465,2]
[381822459,1756359076268,-400.0,0.00020465,2]
[381822460,1756359076277,-400.0,0.00020465,2]
[381822461,1756359076286,-400.0,0.00020465,2]
[381822462,1756359076296,-442.10114954,0.00020465,2]
[381822463,1756359076306,-1048.27,0.00020465,2]
[381822464,1756359076316,-400.0,0.00020465,2]
[381822465,1756359076325,-288.50080985,0.00020465,2]
[381822466,1756359076335,-1535.82,0.00020465,2]
[381822467,1756359076345,-400.0,0.00020465,2]
[381822468,1756359076355,-400.0,0.00020465,2]
[381822469,1756359076364,-400.0,0.00020465,2]
[381822470,1756359076374,-400.0,0.00020465,2]
[381822471,1756359076383,-933.08835314,0.00020473,2]
[381822472,1756359076392,-150.0,0.00020523,5]
[381822473,1756359076402,-791.0,0.0002058,2]
[381822474,1756359076411,-260.03035397,0.00020583,5]
[381822475,1756359076423,-4714.30121,0.0002059,2]
[381822476,1756359076433,-162.65012462,0.00020595,2]
[381822477,1756359076443,-400.0,0.00020637,2]
[381822478,1756359076452,-670.01,0.00020637,2]
[381822479,1756359076462,-400.0,0.00020637,2]
[381822480,1756359076472,-150.724341,0.00020637,2]
[381822481,1756359076482,-237.375839,0.00020637,2]
[381822482,1756359076491,-468.69929,0.00020637,2]
[381822483,1756359076501,-551.72,0.00020637,2]
[381822484,1756359076511,-534.42,0.00020638,2]
[381822485,1756359076521,-400.0,0.00020638,2]
[381822486,1756359076530,-447.19,0.00020638,2]
[381822487,1756359076541,-1313.8,0.00020638,2]
[381822488,1756359076551,-400.0,0.00020638,2]
[381822489,1756359076560,-400.0,0.00020638,2]
[381822490,1756359076572,-460.32376319,0.00020639,2]
[381822491,1756359076582,-437.31,0.00020639,2]
[381822492,1756359076591,-1360.75689845,0.00020662,2]
[381822493,1756359076600,-401.5,0.00020667,15]
[381822494,1756359076610,-3000.0,0.00020712,2]
[381822495,1756359076619,-374.43406684,0.00020722,2]
[381822496,1756359076628,-220.0,0.0002073,2]
[381822497,1756359076638,-1000.0,0.00020737,2]
[381822498,1756359076647,-253.64666529,0.00020738,2]
[381822499,1756359076656,-400.0,0.00020738,2]
[381822500,1756359076665,-400.0,0.00020738,2]
[381822501,1756359076675,-300.64958907,0.00020738,2]
[381822502,1756359076684,-259.14431276,0.00020738,2]
[381822503,1756359076693,-400.0,0.00020738,2]
[381822504,1756359076702,-391.36221251,0.00020738,2]
[381822505,1756359076711,-400.0,0.00020738,2]
[381822506,1756359076720,-400.0,0.00020738,2]
[381822507,1756359076729,-310.84313932,0.00020738,2]
[381822508,1756359076738,-400.0,0.00020738,2]
[381822509,1756359076747,-400.0,0.00020738,2]
[381822510,1756359076756,-476.33,0.00020738,2]
[381822511,1756359076766,-400.0,0.00020738,2]
[381822512,1756359076775,-400.0,0.00020738,2]
[381822513,1756359076784,-400.0,0.00020738,2]
[381822514,1756359076793,-400.0,0.00020738,2]
[381822515,1756359076802,-400.0,0.00020738,2]
[381822516,1756359076812,-1717.97,0.00020738,2]
[381822517,1756359076822,-400.0,0.00020738,2]
[381822518,1756359076831,-400.0,0.00020738,2]
[381822519,1756359076840,-400.0,0.00020738,2]
[381822520,1756359076850,-400.0,0.00020738,2]
[381822521,1756359076859,-404.67396942,0.00020738,2]
[381822522,1756359076869,-400.0,0.00020738,2]
[381822523,1756359076878,-484.65162857,0.00020738,2]
[381822524,1756359076887,-400.0,0.00020738,2]
[381822525,1756359076897,-400.0,0.00020738,2]
[381822526,1756359076906,-400.0,0.00020738,2]
[381822527,1756359076916,-400.0,0.00020738,2]
[381822528,1756359076927,-400.0,0.00020738,2]